bitfinex/quotes_ETHUSD_20250130
["timestamp","ask_amount","ask_price","bid_price","bid_amount"]
[1738200086593,0.8308,3138.4,3137.9,3.18684]
[1738200087948,3.18644,3138.3,3137.8,3.0]
[1738200088148,3.18677,3138.0,3137.4,3.0]
[1738200088332,3.97945,3137.9,3137.4,3.0]
[1738200088738,0.7926,3137.9,3137.4,3.0]
[1738200088910,0.7926,3137.9,3137.4,6.18734]
[1738200089444,1.190533,3137.9,3137.4,6.18734]
[1738200089617,0.05086656,3137.8,3137.4,6.18734]
[1738200089817,3.23783656,3137.8,3137.2,3.18753]
[1738200090610,0.05086656,3137.8,3137.3,3.18744]
[1738200090812,0.05086656,3137.8,3137.4,3.18725]
[1738200091009,0.05086656,3137.8,3137.7,3.18704]
[1738200091323,0.8167,3138.3,3137.7,3.18704]
[1738200091518,0.05066521,3137.8,3137.2,3.74515381]
[1738200091706,0.05066521,3137.8,3137.1,3.18765]
[1738200091707,3.18696,3137.8,3137.1,3.18765]
[1738200091906,3.18696,3137.8,3136.9,3.95202]
[1738200091907,3.18717,3137.6,3137.0,3.0]
[1738200092142,3.91131593,3137.6,3137.0,3.0]
[1738200092348,0.0505609,3137.5,3137.0,3.0]
[1738200092663,0.0505609,3137.5,3136.9,3.18782]
[1738200092858,3.18735,3137.4,3136.7,3.18804]
[1738200093145,0.37426244,3137.3,3136.7,3.18804]
[1738200093306,0.37426244,3137.3,3136.8,3.0]
[1738200093512,0.37426244,3137.3,3136.6,3.0]
[1738200093751,0.05047135,3137.3,3136.9,3.18777]
[1738200094055,3.18716,3137.6,3136.8,3.0]
[1738200094260,0.05055032,3137.5,3137.0,3.18774]
[1738200094921,0.05055032,3137.5,3137.1,3.18763]
[1738200095151,0.8167,3137.7,3137.1,3.18763]
[1738200095360,0.05051084,3137.4,3137.0,3.18774]
[1738200095526,3.587577,3137.6,3137.0,3.18774]
[1738200095727,0.05047135,3137.3,3137.0,3.18774]
[1738200096016,0.400367,3137.6,3137.2,3.18754]
[1738200096766,0.8167,3137.7,3137.3,3.18742]
[1738200097634,0.8167,3137.7,3137.4,3.18734]
[1738200097835,3.18671,3138.1,3137.5,3.18725]
[1738200098020,0.75,3138.3,3137.6,3.18712]
[1738200098240,3.18675,3138.0,3137.3,3.18735]
[1738200098461,0.7752,3137.8,3137.2,3.0]
[1738200098824,0.7752,3137.8,3137.2,6.18754]
[1738200099340,0.7752,3137.8,3137.4,3.18725]
[1738200099926,0.7752,3137.8,3137.2,6.18753]
[1738200100357,0.7752,3137.8,3137.4,3.18734]
[1738200100866,0.7752,3137.8,3137.5,3.18724]
[1738200101162,0.637331,3138.0,3137.5,3.18724]
[1738200101365,0.637331,3138.0,3137.4,3.18734]
[1738200101661,3.824071,3138.0,3137.4,3.18734]
[1738200101862,0.637331,3138.0,3137.5,3.18724]
[1738200102348,3.98167,3138.1,3137.2,6.18751]
[1738200102349,0.795,3138.1,3137.6,3.1871]
[1738200103065,0.0486059,3138.0,3137.6,3.1871]
[1738200103849,0.0486059,3138.0,3137.5,3.0]
[1738200104253,0.0486059,3138.0,3137.5,6.18718]
[1738200104966,0.0486059,3138.0,3137.6,3.18706]
[1738200105327,0.0486059,3138.0,3137.5,3.0]
[1738200105829,3.18684,3137.9,3137.5,3.0]
[1738200106036,0.04693481,3137.8,3137.4,6.18727]
[1738200106233,0.795,3138.1,3137.4,6.18727]
[1738200106444,0.795,3138.1,3137.6,3.18708]
[1738200106445,0.04701374,3138.0,3137.6,3.18708]
[1738200106645,0.04701374,3138.0,3137.7,3.18704]
[1738200106870,0.04701374,3138.0,3137.6,3.18708]
[1738200107774,0.04701374,3138.0,3137.7,3.18702]
[1738200107959,0.04701374,3138.0,3137.9,3.18684]
[1738200108158,0.04701374,3138.0,3137.7,6.18695]
[1738200108349,0.795,3138.1,3137.7,6.18695]
[1738200108549,0.047059,3137.9,3137.7,6.18695]
[1738200108773,0.795,3138.1,3137.7,6.18695]
[1738200108961,0.04702306,3137.8,3137.7,6.18695]
[1738200109165,0.795,3138.1,3137.8,3.18685]
[1738200109550,0.047102,3138.0,3137.8,3.18685]
[1738200109745,0.047102,3138.0,3137.9,3.18684]
[1738200110145,0.047102,3138.0,3137.7,6.18695]
[1738200110537,0.795,3138.1,3137.7,9.37391]
[1738200110738,0.795,3138.1,3137.8,3.18694]
[1738200110967,0.04717966,3138.0,3137.7,6.18695]
[1738200111768,0.04717966,3138.0,3137.8,3.18691]
[1738200111979,0.04717966,3138.0,3137.9,3.18684]
[1738200112182,0.7936,3138.4,3138.0,3.18668]
[1738200112381,3.18572,3139.1,3138.4,3.1863]
[1738200112682,3.18569,3139.1,3138.4,3.18626]
[1738200112841,3.1858,3139.0,3138.4,3.18626]
[1738200113042,3.822949,3139.0,3138.4,3.18626]
[1738200113242,0.637149,3139.0,3138.5,3.18622]
[1738200113478,3.97901,3139.4,3138.9,3.18581]
[1738200113646,0.7936,3139.4,3138.9,3.18581]
[1738200114800,3.97894,3139.4,3138.7,3.18596]
[1738200114951,3.97894,3139.4,3138.7,6.37192]
[1738200115281,0.716418,3139.3,3138.7,6.37192]
[1738200115477,0.716418,3139.3,3138.9,3.1858]
[1738200115677,0.7936,3139.4,3138.9,3.18576]
[1738200115978,0.7719,3139.6,3139.3,3.1854]
[1738200116158,0.7719,3139.6,3139.3,3.0]
[1738200116552,0.7719,3139.6,3139.1,6.18555]
[1738200116804,0.7871,3139.9,3139.4,6.27645798]
[1738200117005,3.97711,3140.2,3139.6,3.18509]
[1738200117321,1.508745,3140.2,3139.6,3.18509]
[1738200117689,1.508745,3140.2,3139.7,3.18495]
[1738200117888,3.900675,3140.2,3139.6,3.18509]
[1738200118101,3.900675,3140.2,3138.8,3.09120798]
[1738200118102,0.818,3139.6,3138.8,3.09120798]
[1738200118309,0.818,3139.6,3138.5,3.88260798]
[1738200118511,3.18552,3139.2,3138.5,6.27738798]
[1738200118815,0.04784501,3139.1,3138.6,3.0]
[1738200119011,0.04784501,3139.1,3138.7,3.18603]
[1738200119211,3.18559,3139.2,3138.6,3.0]
[1738200119520,0.68475749,3139.1,3138.6,6.18612]
[1738200119689,0.68475749,3139.1,3138.6,3.0]
[1738200120373,3.18543,3139.3,3138.6,3.0]
[1738200120702,0.04798437,3139.2,3138.6,3.0]
[1738200121016,3.18525,3139.5,3138.8,3.18586]
[1738200121310,0.04806321,3139.4,3138.6,6.18607]
[1738200121504,0.04806321,3139.4,3138.6,3.0]
[1738200121699,0.04806321,3139.4,3139.0,3.1857]
[1738200121901,0.04806321,3139.4,3138.8,3.18591]
[1738200122092,3.18534,3139.4,3138.9,3.18582]
[1738200122303,0.04802379,3139.3,3138.9,3.18582]
[1738200123173,3.18529,3139.5,3138.8,3.18591]
[1738200123377,0.0479444,3139.4,3138.8,3.18591]
[1738200123880,0.0479444,3139.4,3138.9,3.18579]
[1738200124480,0.0479444,3139.4,3138.6,6.7952008]
[1738200124481,3.18542,3139.3,3138.7,3.18596]
[1738200124681,0.04786555,3139.2,3138.7,3.18596]
[1738200124881,3.18533,3139.4,3138.7,3.18596]
[1738200125095,0.04790498,3139.3,3138.8,3.18592]
[1738200125289,0.04790498,3139.3,3138.9,3.18581]
[1738200125718,3.18535,3139.4,3138.7,3.18602]
[1738200125901,0.04786555,3139.2,3138.7,3.18602]
[1738200126108,0.04790498,3139.3,3138.7,3.18602]
[1738200126308,0.04782612,3139.1,3138.7,3.18602]
[1738200126616,0.04778669,3139.0,3138.8,3.18592]
[1738200126794,3.18535,3139.4,3138.8,3.18592]
[1738200126997,0.04790498,3139.3,3138.8,3.18592]
[1738200127192,0.04790498,3139.3,3138.9,3.18582]
[1738200127396,3.18524,3139.5,3138.8,3.18592]
[1738200127621,3.2332644,3139.4,3138.8,3.18592]
[1738200127815,3.18545,3139.3,3138.6,9.37217]
[1738200128119,0.04786555,3139.2,3138.7,3.18596]
[1738200129530,0.04786555,3139.2,3138.8,3.18592]
[1738200129907,3.585564,3139.5,3138.9,4.0]
[1738200130118,3.93942,3139.0,3138.9,4.0]
[1738200130630,0.80131389,3139.0,3138.9,4.0]
[1738200130788,3.93942,3139.0,3138.9,4.0]
[1738200130988,3.98691506,3139.0,3138.9,4.0]
[1738200131624,0.04749506,3139.0,3138.9,4.0]
[1738200131842,0.7889,3139.3,3138.9,7.904421]
[1738200132120,0.04783042,3139.2,3138.9,4.0]
[1738200132323,3.18572,3139.0,3138.9,4.0]
[1738200132705,3.23347156,3139.0,3138.9,4.0]
[1738200133629,0.04775156,3139.0,3138.9,4.0]
[1738200133811,3.99468,3139.6,3138.9,10.58582]
[1738200134010,0.04802041,3139.5,3139.0,3.18568]
[1738200134931,0.04802041,3139.5,3138.9,10.18582]
[1738200135138,0.04802041,3139.5,3139.1,3.18561]
[1738200135338,0.04802041,3139.5,3139.2,6.18545]
[1738200135949,0.716145,3140.2,3139.5,3.18513]
[1738200135950,3.99402,3140.2,3139.5,3.18513]
[1738200136150,4.711854,3140.2,3139.5,3.18513]
[1738200136354,0.04847903,3140.1,3139.4,3.09120798]
[1738200136651,0.04847903,3140.1,3139.9,3.18473]
[1738200136858,0.04847903,3140.1,3139.7,3.18498]
[1738200137148,0.8095,3140.5,3139.5,6.18518]
[1738200137357,0.04843963,3140.0,3139.7,3.0]
[1738200137537,3.18461,3140.1,3139.6,3.0]
[1738200137744,0.04840023,3139.9,3139.6,3.0]
[1738200137943,3.18461,3140.1,3139.5,3.0]
[1738200138138,0.04868526,3139.8,3138.9,7.9599]
[1738200138341,3.18544,3139.3,3138.9,4.0]
[1738200138553,3.18536,3139.4,3138.9,4.0]
[1738200138554,0.8095,3139.2,3138.9,4.0]
[1738200138772,0.04810825,3139.2,3139.0,3.18564]
[1738200138971,0.04810825,3139.2,3138.9,4.0]
[1738200139130,3.18522,3139.5,3138.9,7.18582]
[1738200139331,0.04818763,3139.1,3138.9,7.18582]
[1738200139571,0.8095,3139.6,3139.1,3.0]
[1738200139752,0.8095,3139.6,3139.1,6.1856]
[1738200139953,3.99467,3139.6,3139.0,3.0]
[1738200140158,0.8095,3139.6,3139.1,3.18561]
[1738200141985,3.98207,3140.1,3139.1,4.18717898]
[1738200142149,0.7974,3140.1,3139.6,3.18509]
[1738200142345,0.7974,3140.1,3139.7,3.18492]
[1738200142736,0.7974,3140.1,3139.8,3.18489]
[1738200142955,3.98173,3140.4,3139.6,3.18509]
[1738200143176,3.18462,3140.1,3139.6,3.18509]
[1738200143960,0.7974,3140.4,3140.0,3.18469]
[1738200144295,0.7974,3140.4,3139.8,3.18484]
[1738200144494,3.18459,3140.2,3139.1,3.18559]
[1738200144794,3.18511,3139.7,3139.2,3.0]
[1738200146701,0.7974,3140.0,3139.4,3.18531]
[1738200146886,0.7974,3140.0,3139.2,3.0]
[1738200147066,0.7974,3140.0,3139.5,3.18515]
[1738200147267,0.7974,3140.0,3139.6,3.18503]
[1738200147800,0.7974,3140.0,3139.7,3.185]
[1738200148098,0.0469991,3139.9,3139.7,3.185]
[1738200148504,0.0469991,3139.9,3139.8,3.18491]
[1738200149101,0.0470837,3139.9,3139.7,3.185]
[1738200149400,3.95156,3140.4,3139.7,3.185]
[1738200149573,0.04704429,3139.8,3139.7,3.185]
[1738200149901,3.95156,3140.4,3139.8,3.18488]
[1738200150260,0.7672,3140.4,3139.9,3.18478]
[1738200150463,0.7672,3140.4,3139.7,3.185]
[1738200150912,3.18452,3140.2,3139.7,3.185]
[1738200151224,0.7672,3140.4,3139.7,3.185]
[1738200151522,3.95156,3140.4,3139.7,3.185]
[1738200151729,3.18448,3140.3,3139.7,3.185]
[1738200151901,4.346716,3140.4,3139.7,3.185]
[1738200152608,0.7672,3140.4,3140.0,3.18469]
[1738200152789,0.7672,3140.4,3139.9,3.1848]
[1738200153425,3.95152,3140.4,3139.8,3.18488]
[1738200153626,3.95152,3140.4,3139.9,3.18481]
[1738200154125,0.7672,3140.4,3140.1,3.18454]
[1738200154628,3.0,3141.4,3140.3,3.1844]
[1738200154629,3.98676,3140.9,3140.3,3.1844]
[1738200154830,0.8029,3140.9,3140.5,3.18414]
[1738200155014,0.8029,3141.5,3141.0,3.18367]
[1738200155519,3.98611,3141.5,3141.0,3.18367]
[1738200155830,3.98611,3141.5,3140.7,0.7536]
[1738200155831,0.8029,3141.5,3140.7,0.7536]
[1738200156015,0.7593,3141.8,3141.3,3.18332]
[1738200156333,3.18299,3141.7,3141.0,3.18362]
[1738200156632,3.18299,3141.7,3141.1,3.18359]
[1738200159451,3.18299,3141.7,3140.9,3.18371]
[1738200159945,3.18299,3141.7,3141.0,3.18366]
[1738200160119,6.36608,3141.7,3141.0,3.18366]
[1738200160327,3.18299,3141.7,3141.0,3.18366]
[1738200160526,3.18299,3141.7,3141.4,4.0]
[1738200161528,3.18319,3141.5,3141.4,4.0]
[1738200161859,3.18309,3141.6,3141.4,4.0]
[1738200162060,3.94222,3141.8,3141.4,4.0]
[1738200162359,3.18314,3141.6,3141.4,4.0]
[1738200163446,3.18319,3141.5,3141.4,4.0]
[1738200163655,4.01269,3141.5,3141.4,4.0]
[1738200164566,0.8295,3141.5,3141.4,4.0]
[1738200164862,4.05899842,3141.5,3141.4,4.0]
[1738200174517,4.05899842,3141.5,3141.4,3.58333333]
[1738200174689,4.85446596,3141.5,3141.4,3.58333333]
[1738200176385,7.85446596,3141.5,3141.4,3.58333333]
[1738200180856,8.41946596,3141.5,3141.4,3.58333333]
[1738200181000,3.18447,3140.3,3140.0,0.8259]
[1738200181342,0.04599742,3140.2,3139.7,0.8259]
[1738200181553,0.04599742,3140.2,3140.1,3.94551]
[1738200181705,3.18362,3141.1,3140.5,3.18416]
[1738200182015,0.04456844,3141.0,3140.6,0.7609]
[1738200182544,3.18381,3140.9,3140.6,0.7609]
[1738200182904,0.04448967,3140.8,3140.6,0.7609]
[1738200183945,6.36677,3141.4,3140.7,3.184]
[1738200184110,3.18338,3141.4,3140.8,0.7036108]
[1738200184538,3.18338,3141.4,3140.8,3.8874908]
[1738200185044,3.1834,3141.3,3140.8,3.8874908]
[1738200186440,3.1834,3141.3,3140.8,0.7036108]
[1738200189847,3.1834,3141.3,3140.7,3.18397]
[1738200189848,3.18406,3140.7,3140.3,0.769]
[1738200191051,3.1836,3141.1,3140.3,0.769]
[1738200191262,3.1833,3141.4,3140.7,3.18393]
[1738200191574,3.1833,3141.4,3140.8,4.00643]
[1738200191711,3.18327,3141.5,3140.9,3.18379]
[1738200193315,7.15654,3141.7,3141.0,3.18368]
[1738200193656,7.15654,3141.7,3140.9,3.902822]
[1738200193657,3.18299,3141.7,3141.1,3.1835]
[1738200194123,3.18311,3141.6,3141.1,3.1835]
[1738200194523,3.18311,3141.6,3140.9,7.086522]
[1738200194720,0.04163214,3141.5,3141.0,0.7909122]
[1738200194948,0.04163214,3141.5,3141.0,3.18368]
[1738200195144,3.22487214,3141.5,3140.9,3.18378]
[1738200195558,3.22487214,3141.5,3141.0,3.18366]
[1738200196285,3.98186,3141.4,3140.7,6.18394]
[1738200196505,3.1834,3141.3,3140.5,3.9448]
[1738200196791,3.18406,3140.7,3140.2,0.7606]
[1738200197396,0.04132735,3140.6,3140.4,3.18423]
[1738200197576,0.04132735,3140.6,3140.5,3.1842]
[1738200197777,3.18377,3141.0,3140.4,3.18423]
[1738200197957,0.04138733,3140.6,3140.5,3.1842]
[1738200198158,3.18377,3141.0,3140.5,3.1842]
[1738200198387,0.04137497,3140.6,3140.5,3.1842]
[1738200198554,3.1835,3141.2,3140.7,3.18398]
[1738200198790,3.1835,3141.2,3140.8,0.7977]
[1738200198997,0.04138476,3141.1,3140.8,0.7977]
[1738200199278,0.04138476,3141.1,3140.6,3.18409]
[1738200199439,0.04138476,3141.1,3140.7,3.18393]
[1738200199638,3.9723,3141.3,3140.7,3.18393]
[1738200199863,0.04135777,3141.0,3140.8,3.18386]
[1738200200074,3.18334,3141.4,3140.9,3.18378]
[1738200200281,0.8011,3141.6,3140.9,3.18378]
[1738200200465,3.18322,3141.5,3140.9,3.502158]
[1738200200645,3.18322,3141.5,3140.9,3.18378]
[1738200200972,3.1836,3141.1,3140.5,4.01419]
[1738200201172,3.18384,3140.9,3140.3,3.18438]
[1738200201377,3.1839,3140.8,3140.3,3.18438]
[1738200201563,3.98479,3141.1,3140.5,3.18415]
[1738200201883,3.18341,3141.3,3140.5,3.18415]
[1738200202077,6.18307,3141.7,3141.0,3.18368]
[1738200202078,3.99171,3141.7,3141.0,3.18368]
[1738200202269,3.18321,3141.5,3141.0,3.18368]
[1738200203541,3.18321,3141.5,3140.9,3.18377]
[1738200203955,7.17478,3141.7,3141.0,3.18369]
[1738200204273,3.81492931,3142.1,3140.6,3.85650798]
[1738200204274,3.1828,3141.9,3141.1,0.8061]
[1738200204579,3.1828,3141.9,3141.3,3.1833]
[1738200205342,3.1828,3141.9,3141.2,3.18343]
[1738200205571,3.1828,3141.9,3141.2,3.900749]
[1738200207344,3.1828,3141.9,3141.3,3.18337]
[1738200208087,3.18289,3141.8,3141.3,3.18337]
[1738200208241,3.1828,3141.9,3141.3,3.18337]
[1738200208447,0.04033743,3141.7,3141.3,3.18337]
[1738200208647,0.04037676,3141.8,3141.3,3.18337]
[1738200208953,0.04033743,3141.7,3141.3,3.18337]
[1738200209279,0.7608,3141.5,3140.9,3.18379]
[1738200209583,0.7608,3141.5,3140.8,0.825]
[1738200209584,0.04021941,3141.4,3140.8,3.18381]
[1738200209780,0.04021941,3141.4,3140.9,6.3675]
[1738200210080,0.04021941,3141.4,3141.0,3.18364]
[1738200210285,3.1831,3141.6,3141.0,3.18364]
[1738200210577,0.04028795,3141.3,3141.0,3.18364]
[1738200210776,6.3661,3141.7,3141.0,3.18364]
[1738200210970,3.18319,3141.5,3141.0,3.18364]
[1738200211373,0.04030257,3141.4,3141.0,3.18364]
[1738200212184,3.89522,3141.6,3141.0,3.18364]
[1738200212382,0.03925271,3141.3,3141.0,3.18364]
[1738200212581,3.89522,3141.6,3141.1,3.18359]
[1738200212753,3.9375,3141.8,3141.2,3.18348]
[1738200212954,0.39375,3141.7,3141.2,3.18348]
[1738200213491,0.7945,3142.1,3141.7,3.18292]
[1738200213786,3.18255,3142.2,3141.5,3.18313]
[1738200214288,3.1824,3142.3,3141.7,3.18298]
[1738200214475,3.1824,3142.3,3141.7,3.18293]
[1738200214665,3.58018,3142.2,3141.7,3.18293]
[1738200215475,0.39769,3142.2,3141.7,3.18293]
[1738200216546,0.7945,3142.4,3141.5,3.09120798]
[1738200216777,0.8184,3142.6,3142.0,3.18266]
[1738200216979,4.00048,3142.6,3142.0,3.18266]
[1738200217753,0.8184,3142.6,3142.0,3.18262]
[1738200217947,4.0005,3142.6,3142.0,3.18262]
[1738200218153,0.718248,3142.5,3142.0,3.18262]
[1738200218976,0.8184,3142.6,3142.0,3.18262]
[1738200219285,0.7805,3142.8,3142.3,3.18234]
[1738200219492,0.7805,3142.8,3142.2,3.1824]
[1738200219493,3.96246,3142.8,3142.2,3.1824]
[1738200220050,3.96246,3142.8,3141.9,0.7576]
[1738200220051,0.7805,3142.8,3141.9,3.0]
[1738200220265,3.18228,3142.4,3141.9,3.0]
[1738200220491,3.1821,3142.6,3141.9,3.0]
[1738200220691,0.03992506,3142.3,3142.0,3.18267]
[1738200220892,3.1821,3142.6,3142.0,3.18267]
[1738200221189,0.714452,3142.6,3142.2,3.18244]
[1738200221395,0.0400284,3142.5,3142.1,0.8085]
[1738200221769,0.0400284,3142.5,3142.2,3.18241]
[1738200222094,3.96242,3142.8,3142.3,3.18238]
[1738200222301,0.03895421,3142.4,3142.3,3.18238]
[1738200222498,3.96242,3142.8,3142.3,3.18238]
[1738200222687,0.03996437,3142.4,3142.3,3.18238]
[1738200222993,0.005,3143.4,3143.0,3.18164]
[1738200223418,0.03695636,3143.3,3143.0,3.18164]
[1738200223585,0.03695636,3143.3,3143.2,3.18147]
[1738200223790,1e-05,3143.4,3143.3,6.96296]
[1738200223966,0.159637,3144.1,3144.0,3.94726]
[1738200224169,7e-06,3144.1,3144.0,10.03846798]
[1738200224363,0.6458532,3145.2,3144.9,3.17972]
[1738200224923,0.6458532,3145.2,3144.9,3.17975]
[1738200225308,0.6458532,3145.2,3144.9,4.2066478]
[1738200225602,3.17875,3145.9,3145.0,3.17965]
[1738200225967,0.7875,3146.2,3145.0,7.50295]
[1738200226399,3.96601,3146.2,3145.0,7.50295]
[1738200227097,0.7875,3146.2,3145.0,6.93795]
[1738200227298,3.17877,3145.9,3145.0,6.93795]
[1738200227881,3.17877,3145.9,3145.0,7.03225395]
[1738200228198,3.17877,3145.9,3145.0,8.46526492]
[1738200229279,0.7875,3146.2,3145.0,3.09430395]
[1738200229467,3.17917,3145.5,3145.0,0.09430395]
[1738200229682,3.17935,3145.3,3145.0,0.09430395]
[1738200229889,3.17954,3145.2,3145.0,0.09430395]
[1738200230286,3.59620667,3145.1,3145.0,0.09430395]
[1738200232041,0.41666667,3145.1,3145.0,0.09430395]
[1738200233138,3.59620667,3145.1,3145.0,0.09430395]
[1738200233288,0.41666667,3145.1,3145.0,0.09430395]
[1738200233629,3.59620667,3145.1,3145.0,0.09430395]
[1738200234132,3.95582734,3145.1,3145.0,0.09430395]
[1738200234337,4.71722734,3145.1,3145.0,0.09430395]
[1738200235338,4.35760667,3145.1,3145.0,0.09430395]
[1738200237033,3.59620667,3145.1,3145.0,0.09430395]
[1738200237909,0.41666667,3145.1,3145.0,0.09430395]
[1738200238809,3.59620667,3145.1,3145.0,0.09430395]
[1738200243617,4.38970667,3145.1,3145.0,0.09430395]
[1738200243937,5.71161634,3145.1,3145.0,3.95e-06]
[1738200244116,8.71161634,3145.1,3145.0,3.95e-06]
[1738200244311,8.71161634,3145.1,3143.3,0.7784]
[1738200244312,3.18104,3143.7,3143.3,0.7784]
[1738200244714,3.1814,3143.3,3143.0,0.7775]
[1738200244914,3.1812,3143.5,3143.0,0.7775]
[1738200245158,3.18078,3143.9,3143.1,3.18147]
[1738200245361,3.18087,3143.8,3143.2,3.18144]
[1738200245571,3.18726,3144.9,3143.0,1.1643708]
[1738200245572,0.7795,3144.4,3143.5,3.09120798]
[1738200245717,0.7795,3144.4,3143.6,0.7779]
[1738200246067,3.18053,3144.2,3143.6,0.7779]
[1738200246237,3.18053,3144.2,3143.6,4.6639668]
[1738200246557,3.18053,3144.2,3143.6,1.4829168]
[1738200248279,3.95978,3144.4,3143.3,3.18134]
[1738200248280,3.18106,3143.6,3143.3,0.7647]
[1738200248412,3.18086,3143.8,3143.0,0.7647]
[1738200248753,3.18113,3143.6,3143.0,6.94636]
[1738200248951,3.18113,3143.6,3143.1,1.012807]
[1738200249613,3.18119,3143.5,3143.1,1.012807]
[1738200249951,3.18113,3143.6,3143.1,1.012807]
[1738200250445,3.18123,3143.5,3143.1,1.012807]
[1738200250649,3.18113,3143.6,3143.0,3.94637]
[1738200250864,3.18128,3143.4,3143.0,0.7647]
[1738200251870,3.18113,3143.6,3143.0,0.7647]
[1738200252070,3.18135,3143.4,3143.0,0.7647]
[1738200252521,3.96593,3143.7,3143.0,0.7647]
[1738200252720,3.18103,3143.7,3143.0,3.94629]
[1738200252945,3.18103,3143.7,3143.1,3.18156]
[1738200253554,3.18103,3143.7,3143.1,3.18155]
[1738200253721,3.18103,3143.7,3143.0,0.7647]
[1738200253932,3.18113,3143.6,3143.0,0.7647]
[1738200254147,3.18113,3143.6,3143.0,4.6501348]
[1738200255065,3.18116,3143.5,3143.0,1.4684748]
[1738200255471,3.18113,3143.6,3143.0,1.4684748]
[1738200256003,3.18117,3143.5,3143.0,1.4684748]
[1738200258256,3.18117,3143.5,3143.0,0.7647]
[1738200258257,3.18134,3143.4,3143.0,0.7647]
[1738200258554,3.18117,3143.5,3143.0,0.7647]
[1738200258868,3.18128,3143.4,3143.0,0.7647]
[1738200259481,3.18116,3143.5,3142.3,0.7756]
[1738200259619,3.18228,3142.4,3141.8,0.7756]
[1738200259822,3.18249,3142.2,3141.8,0.7756]
[1738200260023,3.18265,3142.1,3141.8,0.7756]
[1738200260533,3.18274,3142.0,3141.8,0.7756]
[1738200260731,3.18278,3141.9,3141.8,0.7756]
[1738200260936,3.18288,3141.8,3141.7,0.08746832]
[1738200261276,3.18199,3142.7,3142.1,3.18251]
[1738200261480,3.182,3142.7,3142.0,4.00047]
[1738200261677,3.182,3142.7,3142.1,0.718325]
[1738200261842,3.18247,3142.3,3141.7,0.08746832]
[1738200262360,3.1822,3142.5,3141.9,3.18272]
[1738200262562,3.1824,3142.3,3141.8,0.8178]
[1738200262878,6.36488,3142.3,3141.8,0.8178]
[1738200263176,3.1824,3142.3,3141.8,0.8178]
[1738200263358,3.1824,3142.3,3141.8,1.52663183]
[1738200264428,3.18267,3142.1,3141.8,0.8178]
[1738200264630,6.36486,3142.3,3141.8,0.8178]
[1738200264858,3.18248,3142.2,3141.8,0.8178]
[1738200265124,3.18204,3142.7,3141.8,0.8178]
[1738200265432,3.18204,3142.7,3142.1,3.18254]
[1738200265622,3.18177,3142.9,3142.1,3.819063]
[1738200265828,3.182,3142.7,3142.1,3.18254]
[1738200266885,3.18221,3142.5,3141.8,0.8178]
[1738200267082,3.18221,3142.5,3141.8,7.00066]
[1738200268081,3.18201,3142.7,3141.9,3.18276]
[1738200268247,3.18188,3142.8,3142.1,3.18248]
[1738200268584,3.18188,3142.8,3142.2,6.36484]
[1738200268785,3.18188,3142.8,3142.2,3.18241]
[1738200268959,3.18173,3143.0,3142.3,0.8187]
[1738200269156,0.7939,3143.7,3142.4,0.565]
[1738200269406,0.7975,3144.7,3143.6,3.18105]
[1738200269602,3.18042,3144.3,3143.6,3.18105]
[1738200269765,3.18049,3144.2,3143.6,3.18105]
[1738200273413,0.0353473,3144.8,3144.1,3.09120798]
[1738200273610,0.0353473,3144.8,3144.4,3.09120798]
[1738200274254,0.0353473,3144.8,3144.4,3.18024]
[1738200276377,0.0353473,3144.8,3144.5,3.18012]
[1738200276969,0.0353473,3144.8,3144.4,3.18024]
[1738200277499,0.0353473,3144.8,3144.5,3.18013]
[1738200277702,0.0353473,3144.8,3144.7,6.27115798]
[1738200278001,0.0353473,3144.8,3144.7,9.83615798]
[1738200278180,0.0353473,3144.8,3144.7,10.66595798]
[1738200278382,0.0353473,3144.8,3144.7,12.05054978]
[1738200279262,0.0353473,3144.8,3144.7,15.14175776]
[1738200279560,0.0353473,3144.8,3144.7,12.05054978]
[1738200279972,0.0353473,3144.8,3144.7,12.7028987]
[1738200281996,0.0353473,3144.8,3144.7,12.8179297]
[1738200282296,7.3e-06,3144.8,3144.7,15.90913768]
[1738200283199,6.67e-06,3145.1,3145.0,7.00815]
[1738200283401,6.67e-06,3145.1,3145.0,12.02314898]
[1738200283701,3.92825,3146.6,3145.9,3.17873]
[1738200285203,3.92825,3146.6,3145.9,3.29023078]
[1738200285668,3.17814,3146.5,3145.9,3.29023078]
[1738200287868,0.41666667,3146.6,3146.4,3.17816]
[1738200288070,0.41666667,3146.6,3146.5,0.317816]
[1738200288269,0.41666667,3146.6,3146.5,3.17813]
[1738200288505,0.41666667,3146.6,3146.3,0.7917]
[1738200288805,0.41666667,3146.6,3146.4,3.17815]
[1738200290299,0.41666667,3146.6,3146.5,3.17813]
[1738200290908,0.41666667,3146.6,3146.3,3.17826]
[1738200292025,0.41666667,3146.6,3146.5,3.17813]
[1738200292692,0.41666667,3146.6,3146.4,0.9447858]
[1738200293839,0.41666667,3146.6,3146.2,3.09120798]
[1738200294029,3.17814,3146.5,3146.0,3.7917]
[1738200294324,3.98644,3146.5,3146.0,3.0]
[1738200294708,3.98644,3146.5,3145.9,0.11150078]
[1738200294709,3.1784,3146.3,3145.9,0.11150078]
[1738200295141,3.98648,3146.5,3145.9,0.11150078]
[1738200295312,3.17836,3146.3,3145.9,0.11150078]
[1738200295953,4.42679467,3146.5,3145.9,0.11150078]
[1738200296112,3.17853,3146.2,3145.9,0.11150078]
[1738200296501,3.17824,3146.4,3145.9,0.11150078]
[1738200297767,0.8083,3146.5,3145.9,3.29016078]
[1738200298063,0.8083,3146.5,3145.9,4.10046078]
[1738200298211,3.9865,3146.5,3145.9,4.10046078]
[1738200299242,0.41666667,3146.6,3146.1,3.17846]